fUST/lending_fUST_20250221
["ID","MTS","AMOUNT","RATE_DAILY","PERIOD"]
[353895689,1740117048570,-500.0,0.00014684,2]
[353895691,1740117048579,-500.0,0.00014684,2]
[353895693,1740117048589,-564.43,0.00014684,2]
[353895695,1740117048599,-500.0,0.00014684,2]
[353895696,1740117048609,-533.17,0.00014684,2]
[353895699,1740117048619,-500.0,0.00014684,2]
[353895701,1740117048629,-500.0,0.00014684,2]
[353895703,1740117048638,-500.0,0.00014684,2]
[353895705,1740117048647,-500.0,0.00014684,2]
[353895707,1740117048656,-1090.82,0.00014684,2]
[353895709,1740117048665,-3679.13,0.00014684,2]
[353895711,1740117048675,-7612.34,0.00014684,2]
[353895713,1740117048684,-1146.8,0.00014684,2]
[353895715,1740117048693,-647.37,0.00014684,2]
[353895717,1740117048703,-500.0,0.00014684,2]
[353895719,1740117048712,-1094.39,0.00014684,2]
[353895721,1740117048722,-1858.53,0.00014684,2]
[353895723,1740117048731,-610.42,0.00014684,2]
[353895725,1740117048740,-15893.71,0.00014684,2]
[353895727,1740117048749,-500.0,0.00014684,2]
[353895729,1740117048758,-500.0,0.00014684,2]
[353895731,1740117048767,-828.8,0.00014684,2]
[353895733,1740117048776,-1087.4,0.00014684,2]
[353895735,1740117048785,-559.84,0.00014684,2]
[353895737,1740117048794,-679.04,0.00014684,2]
[353895739,1740117048804,-568.78,0.00014684,2]
[353895741,1740117048813,-1681.39,0.00014684,2]
[353895743,1740117048822,-3245.48,0.00014684,2]
[353895745,1740117048831,-7414.0,0.00014684,2]
[353895747,1740117048840,-881.69,0.00014684,2]
[353895749,1740117048849,-500.0,0.00014684,2]
[353895751,1740117048858,-1674.8,0.00014684,2]
[353895753,1740117048867,-1125.57,0.00014684,2]
[353895755,1740117048876,-1837.49,0.00014684,2]
[353895757,1740117048886,-529.29,0.00014684,2]
[353895759,1740117048895,-907.48,0.00014684,2]
[353895761,1740117048904,-604.66,0.00014684,2]
[353895763,1740117048913,-500.0,0.00014684,2]
[353895765,1740117048923,-1373.67,0.00014684,2]
[353895767,1740117048932,-500.0,0.00014684,2]
[353895769,1740117048941,-962.46,0.00014684,2]
[353895771,1740117048950,-822.03,0.00014684,2]
[353895773,1740117048959,-2871.79,0.00014684,2]
[353895775,1740117048968,-500.0,0.00014684,2]
[353895777,1740117048977,-915.56,0.00014684,2]
[353895779,1740117048986,-151.0,0.000147,2]
[353895781,1740117048995,-151.0,0.000147,2]
[353895782,1740117049004,-1000.0,0.00014721,2]
[353895785,1740117049014,-279.99377584,0.00014721,2]
[353895787,1740117049023,-500.8256556,0.00014721,2]
[353895788,1740117049033,-1000.0,0.00014721,2]
[353895791,1740117049043,-517.12891589,0.00014721,2]
[353895792,1740117049052,-160.0,0.00014736,4]
[353895795,1740117049061,-168.40801011,0.0001474,2]
[353895797,1740117049071,-168.40801011,0.0001474,2]
[353895799,1740117049080,-307.0,0.0001474,2]
[353895801,1740117049089,-308.01581002,0.00014766,2]
[353895803,1740117049098,-500.0,0.00014766,2]
[353895804,1740117049108,-500.0,0.00014766,2]
[353895806,1740117049118,-168.43024049,0.00014766,2]
[353895808,1740117049127,-500.0,0.00014766,2]
[353895810,1740117049136,-500.0,0.00014767,2]
[353895812,1740117049145,-500.0,0.00014767,2]
[353895814,1740117049154,-500.0,0.00014767,2]
[353895816,1740117049163,-500.0,0.00014767,2]
[353895818,1740117049173,-266.44618881,0.00014767,2]
[353895820,1740117049183,-564.43,0.00014767,2]
[353895821,1740117049192,-533.17,0.00014767,2]
[353895822,1740117049202,-500.0,0.00014767,2]
[353895823,1740117049210,-500.0,0.00014767,2]
[353895824,1740117049219,-500.0,0.00014767,2]
[353895825,1740117049228,-500.0,0.00014767,2]
[353895826,1740117049237,-1090.82,0.00014767,2]
[353895827,1740117049246,-3679.13,0.00014767,2]
[353895828,1740117049255,-7612.34,0.00014767,2]
[353895829,1740117049264,-1146.8,0.00014767,2]
[353895830,1740117049274,-647.37,0.00014767,2]
[353895831,1740117049283,-500.0,0.00014767,2]
[353895832,1740117049291,-1094.39,0.00014767,2]
[353895833,1740117049300,-1858.53,0.00014767,2]
[353895834,1740117049309,-610.42,0.00014767,2]
[353895835,1740117049318,-10359.00651359,0.00014767,2]
[353895861,1740117049568,-330.154,0.00013698,2]
[353895864,1740117049587,-163.51248244,0.00013598,2]
[353895866,1740117049596,-301.006,0.00013698,2]
[353895868,1740117049606,-1166.44767661,0.00014767,2]
[353895870,1740117049619,-1999.72401765,0.00014767,2]
[353895948,1740117311556,273.002884,9.041e-05,2]
[353895952,1740117579452,448.12,8.001e-05,2]
[353895963,1740118228606,371.95866807,0.00019,120]
[353896576,1740118238810,-300.0,0.00013697,2]
[353896578,1740118238820,-500.0,0.00013698,2]
[353896580,1740118238829,-525.3692012,0.00013698,2]
[353896582,1740118238839,-500.0,0.00013698,2]
[353896584,1740118238849,-500.0,0.00013698,2]
[353896587,1740118238858,-500.0,0.00013698,2]
[353896589,1740118238867,-500.0,0.00013698,2]
[353896591,1740118238876,-500.0,0.00013698,2]
[353896593,1740118238885,-500.0,0.00013698,2]
[353896595,1740118238894,-500.0,0.00013698,2]
[353896597,1740118238903,-500.0,0.00013698,2]
[353896599,1740118238912,-500.0,0.00013698,2]
[353896601,1740118238922,-500.0,0.00013698,2]
[353896603,1740118238931,-500.0,0.00013698,2]
[353896605,1740118238940,-502.76172559,0.00013698,2]
[353896607,1740118238950,-504.12576248,0.00013698,2]
[353896609,1740118238960,-500.0,0.00013698,2]
[353896611,1740118238969,-500.0,0.00013698,2]
[353896613,1740118238981,-560.81,0.00013698,2]
[353896615,1740118238990,-500.0,0.00013698,2]
[353896617,1740118239001,-500.0,0.00013698,2]
[353896619,1740118239010,-500.0,0.00013698,2]
[353896621,1740118239021,-500.0,0.00013698,2]
[353896623,1740118239030,-500.0,0.00013698,2]
[353896625,1740118239041,-659.11,0.00013698,2]
[353896627,1740118239051,-500.0,0.00013698,2]
[353896629,1740118239063,-500.0,0.00013698,2]
[353896631,1740118239073,-500.0,0.00013698,2]
[353896634,1740118239083,-500.0,0.00013698,2]
[353896636,1740118239092,-788.64,0.00013698,2]
[353896638,1740118239101,-500.0,0.00013698,2]
[353896640,1740118239111,-500.0,0.00013698,2]
[353896642,1740118239121,-500.0,0.00013698,2]
[353896644,1740118239131,-767.86,0.00013698,2]
[353896646,1740118239140,-500.0,0.00013698,2]
[353896648,1740118239149,-322.90528435,0.00013698,2]
[353896650,1740118239159,-500.0,0.00013698,2]
[353896652,1740118239167,-577.33,0.00013698,2]
[353896654,1740118239177,-500.0,0.00013698,2]
[353896656,1740118239186,-506.24042637,0.00013698,2]
[353896658,1740118239195,-500.0,0.00013698,2]
[353896660,1740118239205,-500.0,0.00013698,2]
[353896662,1740118239215,-500.0,0.00013698,2]
[353896664,1740118239224,-500.0,0.00013698,2]
[353896666,1740118239234,-500.0,0.00013698,2]
[353896668,1740118239244,-500.0,0.00013698,2]
[353896670,1740118239254,-402.1478177,0.00013698,2]
[353896672,1740118239264,-500.0,0.00013698,2]
[353896674,1740118239273,-266.71766763,0.00013698,2]
[353896676,1740118239283,-500.0,0.00013698,2]
[353896678,1740118239292,-500.0,0.00013698,2]
[353896681,1740118239303,-500.0,0.00013698,2]
[353896683,1740118239312,-500.0,0.00013698,2]
[353896685,1740118239321,-381.46592178,0.00013698,2]
[353896687,1740118239330,-5115.52,0.00013698,2]
[353896689,1740118239339,-500.0,0.00013698,2]
[353896691,1740118239348,-583.16,0.00013698,2]
[353896692,1740118239357,-500.0,0.00013698,2]
[353896695,1740118239366,-1763.15,0.00013698,2]
[353896697,1740118239376,-12832.81,0.00013698,2]
[353896699,1740118239385,-500.0,0.00013698,2]
[353896701,1740118239394,-2477.03,0.00013698,2]
[353896703,1740118239403,-571.96,0.00013698,2]
[353896705,1740118239412,-1632.63,0.00013698,2]
[353896707,1740118239421,-970.01,0.00013698,2]
[353896709,1740118239430,-500.0,0.00013698,2]
[353896711,1740118239439,-1658.55,0.00013698,2]
[353896712,1740118239448,-500.0,0.00013698,2]
[353896714,1740118239458,-504.99505626,0.00013698,2]
[353896716,1740118239467,-500.0,0.00013698,2]
[353896718,1740118239476,-889.73,0.00013698,2]
[353896720,1740118239485,-500.0,0.00013698,2]
[353896722,1740118239494,-500.0,0.00013698,2]
[353896725,1740118239504,-500.0,0.00013698,2]
[353896727,1740118239515,-500.0,0.00013698,2]
[353896729,1740118239524,-500.0,0.00013698,2]
[353896731,1740118239533,-500.0,0.00013698,2]
[353896733,1740118239542,-500.0,0.00013698,2]
[353896735,1740118239555,-1532.0,0.00013698,2]
[353896737,1740118239564,-687.09,0.00013698,2]
[353896739,1740118239573,-500.0,0.00013698,2]
[353896741,1740118239583,-780.59,0.00013698,2]
[353896743,1740118239592,-504.13573299,0.00013698,2]
[353896745,1740118239601,-995.37,0.00013698,2]
[353896747,1740118239610,-500.0,0.00013698,2]
[353896749,1740118239620,-501.85779859,0.00013698,2]
[353896751,1740118239629,-2332.34,0.00013698,2]
[353896753,1740118239638,-500.0,0.00013698,2]
[353896755,1740118239647,-1414.88,0.00013698,2]
[353896757,1740118239657,-4367.26,0.00013698,2]
[353896759,1740118239665,-23100.61,0.00013698,2]
[353896761,1740118239674,-1266.88,0.00013698,2]
[353896762,1740118239683,-1658.09,0.00013698,2]
[353896765,1740118239693,-500.0,0.00013698,2]
[353896767,1740118239702,-10121.5,0.00013698,2]
[353896768,1740118239711,-500.0,0.00013698,2]
[353896770,1740118239720,-891.26,0.00013698,2]
[353896772,1740118239729,-2055.72,0.00013698,2]
[353896774,1740118239738,-630.32,0.00013698,2]
[353896776,1740118239747,-2802.08,0.00013698,2]
[353896778,1740118239757,-288.49302939,0.00013698,2]
[353896781,1740118239766,-500.0,0.00013698,2]
[353896782,1740118239775,-1334.14,0.00013698,2]
[353896784,1740118239784,-508.4735218,0.00013698,2]
[353896786,1740118239793,-500.0,0.00013698,2]
[353896789,1740118239805,-623.31,0.00013698,2]
[353896790,1740118239814,-760.7,0.00013698,2]
[353896792,1740118239823,-900.55,0.00013698,2]
[353896793,1740118239832,-513.46125984,0.00013698,2]
[353896794,1740118239841,-210.0944019,0.00013698,2]
[353896795,1740118239851,-500.0,0.00013698,2]
[353896796,1740118239860,-502.42400886,0.00013698,2]
[353896798,1740118239869,-500.0,0.00013698,2]
[353896800,1740118239878,-500.0,0.00013698,2]
[353896802,1740118239887,-2021.19,0.00013698,2]
[353896804,1740118239896,-500.0,0.00013698,2]
[353896806,1740118239905,-748.09,0.00013698,2]
[353896808,1740118239914,-500.0,0.00013698,2]
[353896810,1740118239923,-503.89516596,0.00013698,2]
[353896812,1740118239932,-500.0,0.00013698,2]
[353896814,1740118239941,-1466.85,0.00013698,2]
[353896816,1740118239950,-500.0,0.00013698,2]
[353896818,1740118239959,-500.0,0.00013698,2]
[353896820,1740118239968,-500.0,0.00013698,2]
[353896822,1740118239978,-596.42994496,0.00013698,2]
[353896824,1740118239989,-501.28230942,0.00013698,2]
[353896826,1740118239999,-500.0,0.00013698,2]
[353896828,1740118240008,-500.0,0.00013698,2]
[353896830,1740118240017,-1171.71,0.00013698,2]
[353896832,1740118240028,-581.44,0.00013698,2]
[353896834,1740118240037,-581.44,0.00013698,2]
[353896836,1740118240047,-500.0,0.00013698,2]
[353896838,1740118240058,-581.44,0.00013698,2]
[353896841,1740118240067,-581.44,0.00013698,2]
[353896843,1740118240076,-581.44,0.00013698,2]
[353896845,1740118240085,-581.44,0.00013698,2]
[353896847,1740118240094,-581.44,0.00013698,2]
[353896849,1740118240103,-581.44,0.00013698,2]
[353896851,1740118240113,-581.44,0.00013698,2]
[353896853,1740118240122,-503.86098965,0.00013698,2]
[353896855,1740118240131,-500.0,0.00013698,2]
[353896857,1740118240140,-500.0,0.00013698,2]
[353896859,1740118240149,-4391.14,0.00013698,2]
[353896861,1740118240158,-501.79654225,0.00013698,2]
[353896863,1740118240168,-500.0,0.00013698,2]
[353896865,1740118240177,-500.0,0.00013698,2]
[353896867,1740118240186,-521.58,0.00013698,2]
[353896869,1740118240195,-500.59182267,0.00013698,2]
[353896870,1740118240205,-500.0,0.00013698,2]
[353896871,1740118240215,-501.90517466,0.00013698,2]
[353896872,1740118240224,-1348.07,0.00013698,2]
[353896873,1740118240233,-500.38466599,0.00013698,2]
[353896874,1740118240242,-500.0,0.00013698,2]
[353896875,1740118240251,-179.80221756,0.00013699,2]
[353896876,1740118240260,-293.242843,0.00013699,2]
[353896877,1740118240270,-163.355146,0.00013699,2]
[353896878,1740118240278,-46255.5596464,0.00013699,2]
[353896879,1740118240287,-38980.20807772,0.00013763,2]
[353896880,1740118240298,-500.0,0.00013779,2]
[353896881,1740118240307,-581.44,0.00013779,2]
[353896882,1740118240317,-581.44,0.00013779,2]
[353896883,1740118240326,-581.44,0.00013779,2]
[353896884,1740118240335,-581.44,0.00013779,2]
[353896885,1740118240345,-581.44,0.00013779,2]
[353896886,1740118240355,-581.44,0.00013779,2]
[353896887,1740118240364,-581.44,0.00013779,2]
[353896888,1740118240373,-500.0,0.00013779,2]
[353896889,1740118240383,-408.63771827,0.00013779,2]
[353896890,1740118240392,-460.202981,0.00013779,2]
[353896891,1740118240401,-500.0,0.00013779,2]
[353896892,1740118240410,-500.0,0.00013779,2]
[353896893,1740118240420,-500.0,0.00013779,2]
[353896894,1740118240429,-500.0,0.00013779,2]
[353896895,1740118240438,-500.0,0.00013779,2]
[353896896,1740118240447,-500.0,0.00013779,2]
[353896898,1740118240456,-500.0,0.00013779,2]
[353896900,1740118240465,-500.0,0.00013779,2]
[353896902,1740118240475,-500.0,0.00013779,2]
[353896904,1740118240484,-500.0,0.00013779,2]
[353896906,1740118240493,-213.48803046,0.00013779,2]
[353896908,1740118240502,-500.0,0.00013779,2]
[353896910,1740118240512,-500.0,0.00013779,2]
[353896912,1740118240521,-500.0,0.00013779,2]
[353896913,1740118240530,-500.0,0.00013779,2]
[353896916,1740118240540,-500.0,0.00013779,2]
[353896918,1740118240552,-500.0,0.00013779,2]
[353896920,1740118240561,-500.0,0.00013779,2]
[353896922,1740118240571,-500.0,0.00013779,2]
[353896924,1740118240580,-500.0,0.00013779,2]
[353896926,1740118240589,-540.95745005,0.00013779,2]
[353896928,1740118240598,-445.86268418,0.00013779,2]
[353896929,1740118240607,-500.0,0.00013779,2]
[353896931,1740118240616,-500.0,0.00013779,2]
[353896933,1740118240625,-500.0,0.00013779,2]
[353896935,1740118240634,-500.0,0.00013779,2]
[353896937,1740118240644,-500.0,0.00013779,2]
[353896939,1740118240653,-500.0,0.00013779,2]
[353896941,1740118240662,-500.0,0.00013779,2]
[353896943,1740118240672,-500.0,0.00013779,2]
[353896945,1740118240681,-500.0,0.00013779,2]
[353896947,1740118240691,-170.95652135,0.00013779,2]
[353896949,1740118240700,-500.0,0.00013779,2]
[353896951,1740118240710,-500.0,0.00013779,2]
[353896953,1740118240720,-500.0,0.00013779,2]
[353896955,1740118240730,-500.0,0.00013779,2]
[353896957,1740118240739,-500.0,0.00013779,2]
[353896960,1740118240749,-500.0,0.00013779,2]
[353896962,1740118240759,-500.0,0.00013779,2]
[353896964,1740118240768,-500.0,0.00013779,2]
[353896966,1740118240777,-500.0,0.00013779,2]
[353896968,1740118240787,-500.0,0.00013779,2]
[353896970,1740118240796,-500.0,0.00013779,2]
[353896972,1740118240807,-500.0,0.00013779,2]
[353896974,1740118240816,-500.0,0.00013779,2]
[353896976,1740118240826,-500.0,0.00013779,2]
[353896977,1740118240836,-500.0,0.00013779,2]
[353896979,1740118240846,-500.0,0.00013779,2]
[353896982,1740118240856,-500.0,0.00013779,2]
[353896983,1740118240865,-500.0,0.00013779,2]
[353896985,1740118240875,-500.0,0.0001378,2]
[353896987,1740118240884,-357.65815289,0.0001378,2]
[353896989,1740118240895,-500.0,0.0001378,2]
[353896991,1740118240904,-500.0,0.0001378,2]
[353896993,1740118240913,-500.0,0.0001378,2]
[353896995,1740118240922,-500.0,0.0001378,2]
[353896997,1740118240931,-500.0,0.0001378,2]
[353896999,1740118240940,-500.0,0.0001378,2]
[353897000,1740118240950,-500.0,0.0001378,2]
[353897001,1740118240959,-500.0,0.0001378,2]
[353897002,1740118241063,-500.0,0.0001378,2]
[353897003,1740118241072,-500.0,0.0001378,2]
[353897004,1740118241082,-500.0,0.0001378,2]
[353897005,1740118241091,-560.81,0.0001378,2]
[353897006,1740118241100,-500.0,0.0001378,2]
[353897007,1740118241110,-500.0,0.0001378,2]
[353897009,1740118241119,-500.0,0.0001378,2]
[353897011,1740118241128,-500.0,0.0001378,2]
[353897012,1740118241137,-659.11,0.0001378,2]
[353897014,1740118241146,-500.0,0.0001378,2]
[353897016,1740118241156,-500.0,0.0001378,2]
[353897018,1740118241165,-500.0,0.0001378,2]
[353897020,1740118241174,-500.0,0.0001378,2]
[353897022,1740118241183,-788.64,0.0001378,2]
[353897024,1740118241192,-500.0,0.0001378,2]
[353897026,1740118241201,-500.0,0.0001378,2]
[353897028,1740118241210,-500.0,0.0001378,2]
[353897030,1740118241220,-767.86,0.0001378,2]
[353897032,1740118241229,-500.0,0.0001378,2]
[353897033,1740118241238,-500.0,0.0001378,2]
[353897034,1740118241248,-577.33,0.0001378,2]
[353897035,1740118241257,-500.0,0.0001378,2]
[353897036,1740118241266,-500.0,0.0001378,2]
[353897037,1740118241275,-500.0,0.0001378,2]
[353897038,1740118241285,-500.0,0.0001378,2]
[353897039,1740118241294,-500.0,0.0001378,2]
[353897040,1740118241304,-500.0,0.0001378,2]
[353897041,1740118241313,-500.0,0.0001378,2]
[353897042,1740118241323,-500.0,0.0001378,2]
[353897043,1740118241332,-500.0,0.0001378,2]
[353897044,1740118241341,-500.0,0.0001378,2]
[353897045,1740118241351,-500.0,0.0001378,2]
[353897046,1740118241360,-500.0,0.0001378,2]
[353897047,1740118241369,-500.0,0.0001378,2]
[353897049,1740118241379,-5115.52,0.0001378,2]
[353897051,1740118241388,-583.16,0.0001378,2]
[353897053,1740118241397,-500.0,0.0001378,2]
[353897055,1740118241406,-1763.15,0.0001378,2]
[353897057,1740118241417,-12832.81,0.0001378,2]
[353897059,1740118241426,-500.0,0.0001378,2]
[353897061,1740118241435,-2477.03,0.0001378,2]
[353897063,1740118241444,-571.96,0.0001378,2]
[353897065,1740118241454,-1632.63,0.0001378,2]
[353897067,1740118241463,-970.01,0.0001378,2]
[353897069,1740118241472,-500.0,0.0001378,2]
[353897071,1740118241481,-1658.55,0.0001378,2]
[353897073,1740118241490,-500.0,0.0001378,2]
[353897075,1740118241499,-500.0,0.0001378,2]
[353897077,1740118241508,-889.73,0.0001378,2]
[353897079,1740118241517,-500.0,0.0001378,2]
[353897081,1740118241527,-500.0,0.0001378,2]
[353897083,1740118241536,-500.0,0.0001378,2]
[353897085,1740118241545,-500.0,0.0001378,2]
[353897087,1740118241557,-507.02082103,0.0001378,2]
[353897089,1740118241567,-500.0,0.0001378,2]
[353897091,1740118241576,-500.0,0.0001378,2]
[353897093,1740118241586,-1532.0,0.0001378,2]
[353897095,1740118241595,-687.09,0.0001378,2]
[353897097,1740118241606,-500.0,0.0001378,2]
[353897099,1740118241615,-780.59,0.0001378,2]
[353897101,1740118241625,-995.37,0.0001378,2]
[353897103,1740118241634,-500.0,0.0001378,2]
[353897105,1740118241643,-2332.34,0.0001378,2]
[353897107,1740118241652,-500.0,0.0001378,2]
[353897109,1740118241661,-1414.88,0.0001378,2]
[353897111,1740118241671,-4367.26,0.0001378,2]
[353897113,1740118241680,-23100.61,0.0001378,2]
[353897115,1740118241689,-1266.88,0.0001378,2]
[353897117,1740118241699,-1658.09,0.0001378,2]
[353897119,1740118241710,-500.0,0.0001378,2]
[353897121,1740118241719,-10121.5,0.0001378,2]
[353897123,1740118241729,-500.0,0.0001378,2]
[353897125,1740118241739,-891.26,0.0001378,2]
[353897127,1740118241749,-2055.72,0.0001378,2]
[353897129,1740118241758,-630.32,0.0001378,2]
[353897131,1740118241768,-2802.08,0.0001378,2]
[353897133,1740118241777,-1334.14,0.0001378,2]
[353897135,1740118241786,-500.0,0.0001378,2]
[353897137,1740118241796,-623.31,0.0001378,2]
[353897139,1740118241806,-760.7,0.0001378,2]
[353897141,1740118241815,-900.55,0.0001378,2]
[353897143,1740118241825,-503.83248927,0.0001378,2]
[353897145,1740118241834,-500.0,0.0001378,2]
[353897147,1740118241843,-2021.19,0.0001378,2]
[353897149,1740118241853,-500.0,0.0001378,2]
[353897151,1740118241862,-748.09,0.0001378,2]
[353897153,1740118241871,-500.0,0.0001378,2]
[353897155,1740118241880,-500.0,0.0001378,2]
[353897157,1740118241889,-1466.85,0.0001378,2]
[353897159,1740118241899,-500.0,0.0001378,2]
[353897161,1740118241908,-500.0,0.0001378,2]
[353897163,1740118241917,-500.0,0.0001378,2]
[353897165,1740118241927,-500.0,0.0001378,2]
[353897167,1740118241936,-1171.71,0.0001378,2]
[353897169,1740118241945,-500.0,0.0001378,2]
[353897171,1740118241954,-500.0,0.0001378,2]
[353897173,1740118241964,-512.35017562,0.0001378,2]
[353897175,1740118241974,-4391.14,0.0001378,2]
[353897177,1740118241987,-500.0,0.0001378,2]
[353897179,1740118241996,-500.0,0.0001378,2]
[353897181,1740118242006,-521.58,0.0001378,2]
[353897183,1740118242015,-500.0,0.0001378,2]
[353897185,1740118242025,-1348.07,0.0001378,2]
[353897187,1740118242034,-160.804693,0.00013835,5]
[353897189,1740118242044,-581.44,0.00013861,2]
[353897191,1740118242054,-581.44,0.00013861,2]
[353897193,1740118242064,-581.44,0.00013862,2]
[353897195,1740118242073,-581.44,0.00013862,2]
[353897197,1740118242083,-581.44,0.00013862,2]
[353897199,1740118242091,-581.44,0.00013862,2]
[353897201,1740118242101,-581.44,0.00013862,2]
[353897203,1740118242110,-581.45620356,0.00013862,2]
[353897205,1740118242120,-500.0,0.00013863,2]
[353897207,1740118242129,-500.0,0.00013863,2]
[353897209,1740118242139,-500.0,0.00013863,2]
[353897211,1740118242148,-500.0,0.00013863,2]
[353897213,1740118242158,-500.0,0.00013863,2]
[353897215,1740118242168,-500.0,0.00013863,2]
[353897217,1740118242177,-500.0,0.00013863,2]
[353897219,1740118242187,-500.0,0.00013863,2]
[353897221,1740118242196,-500.0,0.00013863,2]
[353897223,1740118242205,-500.0,0.00013863,2]
[353897225,1740118242215,-500.0,0.00013863,2]
[353897227,1740118242224,-500.0,0.00013863,2]
[353897229,1740118242233,-560.81,0.00013863,2]
[353897231,1740118242243,-500.0,0.00013863,2]
[353897233,1740118242252,-269.41490776,0.00013863,2]
[353897235,1740118242262,-500.0,0.00013863,2]
[353897237,1740118242271,-500.0,0.00013863,2]
[353897239,1740118242280,-659.11,0.00013863,2]
[353897241,1740118242290,-500.0,0.00013863,2]
[353897243,1740118242299,-500.0,0.00013863,2]
[353897245,1740118242308,-377.1476117,0.00013863,2]
[353897246,1740118242317,-500.0,0.00013863,2]
[353897249,1740118242327,-788.64,0.00013863,2]
[353897250,1740118242336,-500.0,0.00013863,2]
[353897252,1740118242345,-500.0,0.00013863,2]
[353897254,1740118242354,-500.0,0.00013863,2]
[353897256,1740118242364,-767.86,0.00013863,2]
[353897258,1740118242373,-500.0,0.00013863,2]
[353897260,1740118242382,-500.0,0.00013863,2]
[353897262,1740118242391,-577.33,0.00013863,2]
[353897264,1740118242401,-500.0,0.00013863,2]
[353897266,1740118242410,-500.0,0.00013863,2]
[353897268,1740118242420,-500.0,0.00013863,2]
[353897270,1740118242429,-500.0,0.00013863,2]
[353897272,1740118242439,-500.0,0.00013863,2]
[353897274,1740118242448,-500.0,0.00013863,2]
[353897276,1740118242458,-500.0,0.00013863,2]
[353897278,1740118242467,-500.0,0.00013863,2]
[353897280,1740118242477,-500.0,0.00013863,2]
[353897282,1740118242487,-500.0,0.00013863,2]
[353897284,1740118242496,-500.0,0.00013863,2]
[353897286,1740118242505,-500.0,0.00013863,2]
[353897287,1740118242515,-5115.52,0.00013863,2]
[353897288,1740118242524,-583.16,0.00013863,2]
[353897290,1740118242533,-500.0,0.00013863,2]
[353897292,1740118242542,-1763.15,0.00013863,2]
[353897294,1740118242552,-12832.81,0.00013863,2]
[353897295,1740118242562,-332.35525799,0.00013863,2]
[353897297,1740118242571,-2477.03,0.00013863,2]
[353897299,1740118242581,-571.96,0.00013863,2]
[353897301,1740118242590,-1632.63,0.00013863,2]
[353897303,1740118242599,-970.01,0.00013863,2]
[353897304,1740118242609,-330.96217767,0.00013863,2]
[353897306,1740118242618,-1658.55,0.00013863,2]
[353897308,1740118242628,-500.0,0.00013863,2]
[353897310,1740118242638,-500.0,0.00013863,2]
[353897311,1740118242648,-889.73,0.00013863,2]
[353897312,1740118242657,-500.0,0.00013863,2]
[353897313,1740118242666,-500.0,0.00013863,2]
[353897314,1740118242675,-500.0,0.00013863,2]
[353897316,1740118242685,-500.0,0.00013863,2]
[353897317,1740118242694,-500.0,0.00013863,2]
[353897318,1740118242703,-500.0,0.00013863,2]
[353897320,1740118242713,-1532.0,0.00013863,2]
[353897321,1740118242722,-687.09,0.00013863,2]
[353897322,1740118242731,-500.0,0.00013863,2]
[353897323,1740118242740,-780.59,0.00013863,2]
[353897324,1740118242749,-995.37,0.00013863,2]
[353897325,1740118242758,-500.0,0.00013863,2]